[Event "*** SCC Grand Prix: Titled Tuesday Blitz"]
[Site "Chess.com"]
[Date "2020.06.09"]
[Round "1"]
[White "Bayernbk"]
[Black "FairChess_on_YouTube"]
[Result "0-1"]
[WhiteElo "2468"]
[BlackElo "3029"]
[TimeControl "180+1"]
[EndTime "9:05:04 PDT"]
[Termination "FairChess_on_YouTube won by resignation"]

1. e4 {[%clk 0:02:58.1]} 1... c5 {[%clk 0:02:59.3]} 2. c3 {[%clk 0:02:58.2]}
2... Nf6 {[%clk 0:02:58.5]} 3. e5 {[%clk 0:02:58.3]} 3... Nd5 {[%clk 0:02:58.2]}
4. d4 {[%clk 0:02:59.2]} 4... cxd4 {[%clk 0:02:57.8]} 5. Nf3 {[%clk 0:02:59.9]}
5... e6 {[%clk 0:02:57.4]} 6. cxd4 {[%clk 0:03:00.4]} 6... b6 {[%clk 0:02:57.9]}
7. Bd3 {[%clk 0:03:00.7]} 7... Bb7 {[%clk 0:02:58.1]} 8. Nc3 {[%clk 0:03:01.3]}
8... Na6 {[%clk 0:02:58]} 9. O-O {[%clk 0:02:59.3]} 9... Nab4 {[%clk 0:02:57.4]}
10. Bb1 {[%clk 0:02:57.5]} 10... Nxc3 {[%clk 0:02:56.4]} 11. bxc3 {[%clk
0:02:57.7]} 11... Nd5 {[%clk 0:02:57.3]} 12. Bd2 {[%clk 0:02:57.6]} 12... Rc8
{[%clk 0:02:57.1]} 13. Qb3 {[%clk 0:02:41.5]} 13... Ba6 {[%clk 0:02:56.6]} 14.
Rc1 {[%clk 0:02:32.9]} 14... Bc4 {[%clk 0:02:56.4]} 15. Qd1 {[%clk 0:02:27.6]}
15... Ba3 {[%clk 0:02:54.7]} 16. Ng5 {[%clk 0:02:14.6]} 16... Bxc1 {[%clk
0:02:53.1]} 17. Qxc1 {[%clk 0:02:15.5]} 17... f5 {[%clk 0:02:39.3]} 18. exf6
{[%clk 0:02:09.2]} 18... Nxf6 {[%clk 0:02:38.8]} 19. Qd1 {[%clk 0:01:53.5]}
19... O-O {[%clk 0:02:35.5]} 20. Qf3 {[%clk 0:01:49.1]} 20... h6 {[%clk
0:02:28.3]} 21. Nh3 {[%clk 0:01:39.7]} 21... Bd5 {[%clk 0:02:22.1]} 22. Qg3
{[%clk 0:01:27.7]} 22... Be4 {[%clk 0:01:59.9]} 23. Bxh6 {[%clk 0:01:21.2]}
23... Qe7 {[%clk 0:01:59.9]} 24. Bg5 {[%clk 0:01:12.9]} 24... Bxb1 {[%clk
0:01:58.7]} 25. Rxb1 {[%clk 0:01:13.8]} 25... Qa3 {[%clk 0:01:55]} 26. Bxf6
{[%clk 0:00:45.8]} 26... Rxf6 {[%clk 0:01:54.4]} 27. Nf4 {[%clk 0:00:29.7]}
27... Rxc3 {[%clk 0:01:48]} 0-1

[Event "*** SCC Grand Prix: Titled Tuesday Blitz"]
[Site "Chess.com"]
[Date "2020.06.09"]
[Round "1"]
[White "cancrushyou"]
[Black "eljanov"]
[Result "0-1"]
[WhiteElo "2428"]
[BlackElo "2818"]
[TimeControl "180+1"]
[EndTime "9:05:04 PDT"]
[Termination "eljanov won by resignation"]

1. d4 {[%clk 0:02:57.9]} 1... Nf6 {[%clk 0:02:59.8]} 2. c4 {[%clk 0:02:58.1]}
2... e6 {[%clk 0:02:58.8]} 3. g3 {[%clk 0:02:58.4]} 3... d5 {[%clk 0:02:58.2]}
4. Nf3 {[%clk 0:02:58.7]} 4... Be7 {[%clk 0:02:57.7]} 5. Bg2 {[%clk 0:02:58.9]}
5... O-O {[%clk 0:02:57.8]} 6. O-O {[%clk 0:02:59.4]} 6... dxc4 {[%clk
0:02:57.6]} 7. Qa4 {[%clk 0:03:00]} 7... a6 {[%clk 0:02:56.3]} 8. Qxc4 {[%clk
0:03:00.3]} 8... b5 {[%clk 0:02:56.4]} 9. Qc2 {[%clk 0:02:59.8]} 9... Bb7 {[%clk
0:02:54.3]} 10. Bd2 {[%clk 0:03:00.1]} 10... Be4 {[%clk 0:02:51.1]} 11. Qc1
{[%clk 0:02:59.6]} 11... c6 {[%clk 0:02:49.4]} 12. Rd1 {[%clk 0:02:55.4]} 12...
Nbd7 {[%clk 0:02:42.8]} 13. Nc3 {[%clk 0:02:52.2]} 13... Bg6 {[%clk 0:02:41.3]}
14. Bg5 {[%clk 0:02:48.3]} 14... Rc8 {[%clk 0:02:20.6]} 15. Bxf6 {[%clk
0:02:29.1]} 15... Bxf6 {[%clk 0:02:00.1]} 16. b4 {[%clk 0:02:00.6]} 16... Qe7
{[%clk 0:01:44.3]} 17. a3 {[%clk 0:01:55.7]} 17... e5 {[%clk 0:01:41.3]} 18. d5
{[%clk 0:01:42.4]} 18... e4 {[%clk 0:01:40.3]} 19. Nd4 {[%clk 0:01:11.4]} 19...
Bxd4 {[%clk 0:01:38.3]} 20. Rxd4 {[%clk 0:01:11.2]} 20... c5 {[%clk 0:01:38.6]}
21. d6 {[%clk 0:00:47.3]} 21... Qf6 {[%clk 0:01:28]} 22. Nxe4 {[%clk 0:00:34.2]}
22... Qxd4 {[%clk 0:01:26.5]} 0-1

[Event "*** SCC Grand Prix: Titled Tuesday Blitz"]
[Site "Chess.com"]
[Date "2020.06.09"]
[Round "1"]
[White "harkerchess"]
[Black "Alopekos"]
[Result "0-1"]
[WhiteElo "2015"]
[BlackElo "2484"]
[TimeControl "180+1"]
[EndTime "9:05:04 PDT"]
[Termination "Alopekos won by checkmate"]

1. d4 {[%clk 0:03:00.5]} 1... Nf6 {[%clk 0:02:58.4]} 2. Bg5 {[%clk 0:02:59.7]}
2... e6 {[%clk 0:02:56.2]} 3. e4 {[%clk 0:02:58.7]} 3... h6 {[%clk 0:02:54.5]}
4. Bxf6 {[%clk 0:02:58.2]} 4... Qxf6 {[%clk 0:02:55.4]} 5. c3 {[%clk 0:02:58.6]}
5... c5 {[%clk 0:02:53]} 6. Nf3 {[%clk 0:02:55.4]} 6... Nc6 {[%clk 0:02:46.7]}
7. Bb5 {[%clk 0:02:50.9]} 7... a6 {[%clk 0:02:24.6]} 8. Bxc6 {[%clk 0:02:46.5]}
8... bxc6 {[%clk 0:02:25.5]} 9. O-O {[%clk 0:02:45.8]} 9... d5 {[%clk
0:02:15.5]} 10. e5 {[%clk 0:02:44.7]} 10... Qg6 {[%clk 0:02:04.8]} 11. Nbd2
{[%clk 0:02:42.2]} 11... Be7 {[%clk 0:01:25.7]} 12. Qa4 {[%clk 0:02:40.6]} 12...
Bd7 {[%clk 0:01:25.7]} 13. Qa5 {[%clk 0:02:35.6]} 13... Qd3 {[%clk 0:01:17.5]}
14. Nb3 {[%clk 0:02:29.7]} 14... cxd4 {[%clk 0:01:06.4]} 15. cxd4 {[%clk
0:02:27.8]} 15... Qb5 {[%clk 0:01:03.6]} 16. Qc3 {[%clk 0:02:24.7]} 16... O-O
{[%clk 0:00:59.2]} 17. Rac1 {[%clk 0:02:22.6]} 17... Rfb8 {[%clk 0:00:55.7]} 18.
Rc2 {[%clk 0:02:20.8]} 18... a5 {[%clk 0:00:48.3]} 19. Rb1 {[%clk 0:02:14.5]}
19... a4 {[%clk 0:00:47]} 20. Nc5 {[%clk 0:02:14.3]} 20... Be8 {[%clk
0:00:41.5]} 21. Ne1 {[%clk 0:02:10.7]} 21... f6 {[%clk 0:00:40]} 22. f4 {[%clk
0:02:09.4]} 22... Bxc5 {[%clk 0:00:31.6]} 23. Qxc5 {[%clk 0:02:07.8]} 23... Bg6
{[%clk 0:00:31.9]} 24. Rbc1 {[%clk 0:01:58.3]} 24... Bxc2 {[%clk 0:00:30.1]} 25.
Rxc2 {[%clk 0:01:59.2]} 25... Qxc5 {[%clk 0:00:29.6]} 26. dxc5 {[%clk
0:02:00.1]} 26... Rb4 {[%clk 0:00:27.1]} 27. g3 {[%clk 0:01:59.6]} 27... Rab8
{[%clk 0:00:24.5]} 28. Nd3 {[%clk 0:01:58.6]} 28... Rc4 {[%clk 0:00:21.7]} 29.
Rd2 {[%clk 0:01:54.8]} 29... Rd4 {[%clk 0:00:20.6]} 30. Kf2 {[%clk 0:01:54.4]}
30... fxe5 {[%clk 0:00:21.1]} 31. fxe5 {[%clk 0:01:54.4]} 31... Rf8+ {[%clk
0:00:21.2]} 32. Ke3 {[%clk 0:01:54.6]} 32... Re4# {[%clk 0:00:21.4]} 0-1

[Event "*** SCC Grand Prix: Titled Tuesday Blitz"]
[Site "Chess.com"]
[Date "2020.06.09"]
[Round "1"]
[White "IwkooO"]
[Black "MF1966Idrisov"]
[Result "1-0"]
[WhiteElo "2596"]
[BlackElo "2268"]
[TimeControl "180+1"]
[EndTime "9:05:13 PDT"]
[Termination "IwkooO won by resignation"]

1. e4 {[%clk 0:03:00.9]} 1... c6 {[%clk 0:02:59]} 2. d4 {[%clk 0:03:00.7]} 2...
d5 {[%clk 0:02:59.5]} 3. e5 {[%clk 0:03:01.3]} 3... g6 {[%clk 0:02:58.2]} 4. f4
{[%clk 0:02:53.5]} 4... h5 {[%clk 0:02:58.2]} 5. Nf3 {[%clk 0:02:47.1]} 5... Bg4
{[%clk 0:02:53.3]} 6. Bd3 {[%clk 0:02:45.9]} 6... Nh6 {[%clk 0:02:51.5]} 7. h3
{[%clk 0:02:45.9]} 7... Bxf3 {[%clk 0:02:51.2]} 8. Qxf3 {[%clk 0:02:46.8]} 8...
h4 {[%clk 0:02:51.3]} 9. Be3 {[%clk 0:02:32.4]} 9... e6 {[%clk 0:02:47.5]} 10.
Nd2 {[%clk 0:02:29.7]} 10... Nf5 {[%clk 0:02:46.8]} 11. Bf2 {[%clk 0:02:29.7]}
11... Nd7 {[%clk 0:02:40.8]} 12. c3 {[%clk 0:02:23.9]} 12... Qa5 {[%clk
0:02:39]} 13. a4 {[%clk 0:02:15]} 13... a6 {[%clk 0:02:32.1]} 14. b4 {[%clk
0:02:11.5]} 14... Qc7 {[%clk 0:02:31.5]} 15. a5 {[%clk 0:02:11.6]} 15... O-O-O
{[%clk 0:02:22.6]} 16. Nb3 {[%clk 0:02:04.4]} 16... Kb8 {[%clk 0:02:21.4]} 17.
Nc5 {[%clk 0:02:04]} 17... Ka7 {[%clk 0:02:18.4]} 18. O-O {[%clk 0:02:02.2]}
18... Nxc5 {[%clk 0:02:12.1]} 19. bxc5 {[%clk 0:02:02]} 19... Be7 {[%clk
0:02:12]} 20. Rfb1 {[%clk 0:02:00.9]} 20... Rhg8 {[%clk 0:02:03]} 21. Rb6 {[%clk
0:01:58.9]} 21... Rb8 {[%clk 0:02:02.2]} 22. Rab1 {[%clk 0:01:56.5]} 22... g5
{[%clk 0:01:58]} 23. fxg5 {[%clk 0:01:56.6]} 23... Rxg5 {[%clk 0:01:56.4]} 24.
Bf1 {[%clk 0:01:27.1]} 24... Ng3 {[%clk 0:01:51.6]} 25. Bxg3 {[%clk 0:01:22.5]}
25... Rxg3 {[%clk 0:01:50.9]} 26. Qe2 {[%clk 0:01:22.9]} 26... Qc8 {[%clk
0:01:48.9]} 27. Qb2 {[%clk 0:01:20.2]} 27... Bd8 {[%clk 0:01:42.4]} 28. Bxa6
{[%clk 0:01:12.4]} 28... Bxb6 {[%clk 0:01:08]} 29. axb6+ {[%clk 0:01:10.4]}
29... Ka8 {[%clk 0:01:05.2]} 30. Bf1 {[%clk 0:01:10.3]} 1-0

[Event "*** SCC Grand Prix: Titled Tuesday Blitz"]
[Site "Chess.com"]
[Date "2020.06.09"]
[Round "1"]
[White "topotun"]
[Black "esrosenberg"]
[Result "1-0"]
[WhiteElo "2579"]
[BlackElo "2223"]
[TimeControl "180+1"]
[EndTime "9:05:13 PDT"]
[Termination "topotun won on time"]

1. e4 {[%clk 0:03:00.9]} 1... e5 {[%clk 0:02:59.2]} 2. Nf3 {[%clk 0:03:00.5]}
2... Nc6 {[%clk 0:02:59.2]} 3. Bb5 {[%clk 0:02:59.8]} 3... a6 {[%clk 0:02:58.4]}
4. Ba4 {[%clk 0:02:59.9]} 4... Nf6 {[%clk 0:02:57.3]} 5. Qe2 {[%clk 0:02:57.4]}
5... b5 {[%clk 0:02:51.8]} 6. Bb3 {[%clk 0:02:57]} 6... Bc5 {[%clk 0:02:51]} 7.
c3 {[%clk 0:02:55.9]} 7... O-O {[%clk 0:02:42.7]} 8. d3 {[%clk 0:02:55.2]} 8...
h6 {[%clk 0:02:41.4]} 9. h3 {[%clk 0:02:54.9]} 9... Ba7 {[%clk 0:02:40.1]} 10.
g4 {[%clk 0:02:53.3]} 10... d5 {[%clk 0:02:37.6]} 11. g5 {[%clk 0:02:53.3]}
11... dxe4 {[%clk 0:02:34.9]} 12. dxe4 {[%clk 0:02:35.3]} 12... hxg5 {[%clk
0:02:25]} 13. Bxg5 {[%clk 0:02:36.2]} 13... Qd6 {[%clk 0:02:09.3]} 14. Nbd2
{[%clk 0:02:35.6]} 14... Nh5 {[%clk 0:01:55.2]} 15. O-O-O {[%clk 0:02:30]} 15...
Nf4 {[%clk 0:01:44.2]} 16. Bxf4 {[%clk 0:02:19]} 16... exf4 {[%clk 0:01:45.1]}
17. Rhg1 {[%clk 0:02:14.2]} 17... Qc5 {[%clk 0:00:51.3]} 18. Ng5 {[%clk
0:01:53.7]} 18... g6 {[%clk 0:00:09.7]} 19. Nxf7 {[%clk 0:01:43.4]} 19... Rxf7
{[%clk 0:00:04.7]} 20. Rxg6+ {[%clk 0:01:42.9]} 20... Kf8 {[%clk 0:00:04.7]} 21.
Bxf7 {[%clk 0:01:42.8]} 1-0

[Event "*** SCC Grand Prix: Titled Tuesday Blitz"]
[Site "Chess.com"]
[Date "2020.06.09"]
[Round "1"]
[White "AnishGiri"]
[Black "serhanberat_ozdemir"]
[Result "1-0"]
[WhiteElo "2959"]
[BlackElo "2456"]
[TimeControl "180+1"]
[EndTime "9:05:18 PDT"]
[Termination "AnishGiri won by resignation"]

1. d4 {[%clk 0:02:57.1]} 1... Nf6 {[%clk 0:02:59.7]} 2. c4 {[%clk 0:02:56.8]}
2... g6 {[%clk 0:02:59.9]} 3. Nc3 {[%clk 0:02:56.6]} 3... Bg7 {[%clk 0:03:00]}
4. e4 {[%clk 0:02:56.5]} 4... d6 {[%clk 0:02:59.6]} 5. Be2 {[%clk 0:02:56.5]}
5... O-O {[%clk 0:02:59.3]} 6. h4 {[%clk 0:02:57.1]} 6... h5 {[%clk 0:02:54.8]}
7. Bg5 {[%clk 0:02:52.1]} 7... Nbd7 {[%clk 0:02:51.2]} 8. Qd2 {[%clk 0:02:49.5]}
8... c5 {[%clk 0:02:50.8]} 9. d5 {[%clk 0:02:45.5]} 9... Ne5 {[%clk 0:02:48]}
10. Nf3 {[%clk 0:02:37.8]} 10... Nxf3+ {[%clk 0:02:18.9]} 11. gxf3 {[%clk
0:02:38.1]} 11... a6 {[%clk 0:02:17.5]} 12. a4 {[%clk 0:02:37.5]} 12... e6
{[%clk 0:02:17.3]} 13. Rg1 {[%clk 0:02:25.7]} 13... exd5 {[%clk 0:02:17.2]} 14.
Nxd5 {[%clk 0:02:24.1]} 14... Be6 {[%clk 0:02:16.5]} 15. Nf4 {[%clk 0:02:20.2]}
15... Qe7 {[%clk 0:02:08.3]} 16. O-O-O {[%clk 0:02:01.4]} 16... Rfd8 {[%clk
0:02:01.7]} 17. Nxh5 {[%clk 0:01:50.7]} 17... gxh5 {[%clk 0:01:52.4]} 18. Bh6
{[%clk 0:01:51.1]} 18... Ne8 {[%clk 0:01:52.9]} 19. Bxg7 {[%clk 0:01:20.3]}
19... Nxg7 {[%clk 0:01:53.8]} 20. Qh6 {[%clk 0:01:20.5]} 20... f6 {[%clk
0:01:32.6]} 21. Rg6 {[%clk 0:01:20.5]} 21... Ra7 {[%clk 0:01:29.5]} 22. Rdg1
{[%clk 0:01:18.6]} 22... b6 {[%clk 0:01:27.1]} 23. Rxf6 {[%clk 0:01:14.6]} 23...
Bg4 {[%clk 0:01:25.8]} 24. fxg4 {[%clk 0:01:12.9]} 24... Qxe4 {[%clk 0:01:26.4]}
25. Bd1 {[%clk 0:00:57.5]} 25... Rf7 {[%clk 0:01:24.2]} 26. gxh5 {[%clk
0:00:52.7]} 26... Rdd7 {[%clk 0:01:20.9]} 27. Bc2 {[%clk 0:00:51.7]} 27... Rxf6
{[%clk 0:01:16.4]} 28. Qxf6 {[%clk 0:00:47.6]} 28... Qe5 {[%clk 0:01:16.9]} 29.
Qxe5 {[%clk 0:00:46.7]} 29... dxe5 {[%clk 0:01:17.6]} 30. h6 {[%clk 0:00:47.6]}
1-0

[Event "*** SCC Grand Prix: Titled Tuesday Blitz"]
[Site "Chess.com"]
[Date "2020.06.09"]
[Round "1"]
[White "1stSecond"]
[Black "Future2700"]
[Result "1-0"]
[WhiteElo "2788"]
[BlackElo "2419"]
[TimeControl "180+1"]
[EndTime "9:05:20 PDT"]
[Termination "1stSecond won by checkmate"]

1. Nf3 {[%clk 0:03:00.2]} 1... Nf6 {[%clk 0:02:57.5]} 2. g3 {[%clk 0:03:00.1]}
2... e6 {[%clk 0:02:57.4]} 3. Bg2 {[%clk 0:02:50.5]} 3... b6 {[%clk 0:02:57.7]}
4. c4 {[%clk 0:02:46]} 4... Bb7 {[%clk 0:02:57.9]} 5. O-O {[%clk 0:02:45.1]}
5... Be7 {[%clk 0:02:58.3]} 6. Re1 {[%clk 0:02:45.3]} 6... O-O {[%clk
0:02:58.8]} 7. Nc3 {[%clk 0:02:43]} 7... d6 {[%clk 0:02:58.9]} 8. e4 {[%clk
0:02:42.2]} 8... Nbd7 {[%clk 0:02:58.2]} 9. d4 {[%clk 0:02:40.8]} 9... Re8
{[%clk 0:02:55.5]} 10. h3 {[%clk 0:02:38.7]} 10... e5 {[%clk 0:02:55.3]} 11. d5
{[%clk 0:02:33.3]} 11... a5 {[%clk 0:02:54.6]} 12. b3 {[%clk 0:02:27]} 12... h6
{[%clk 0:02:53.8]} 13. Nh4 {[%clk 0:02:23.1]} 13... Nh7 {[%clk 0:02:50.9]} 14.
Nf5 {[%clk 0:02:22.7]} 14... Bg5 {[%clk 0:02:51.1]} 15. Bb2 {[%clk 0:02:16.1]}
15... g6 {[%clk 0:02:43.1]} 16. Ne3 {[%clk 0:02:16.1]} 16... Bxe3 {[%clk
0:02:36.9]} 17. Rxe3 {[%clk 0:02:15.1]} 17... f5 {[%clk 0:02:37.3]} 18. exf5
{[%clk 0:01:49.3]} 18... gxf5 {[%clk 0:02:38.2]} 19. Nb5 {[%clk 0:01:49.9]}
19... Ba6 {[%clk 0:02:18.8]} 20. Rc1 {[%clk 0:01:03.8]} 20... Nc5 {[%clk
0:02:10.7]} 21. a3 {[%clk 0:00:56.9]} 21... Qd7 {[%clk 0:01:57.1]} 22. b4 {[%clk
0:00:55.9]} 22... axb4 {[%clk 0:01:51.9]} 23. axb4 {[%clk 0:00:56.8]} 23... Na4
{[%clk 0:01:50.7]} 24. Qxa4 {[%clk 0:00:54.6]} 24... Bxb5 {[%clk 0:01:48.9]} 25.
Qxb5 {[%clk 0:00:54.5]} 25... Qf7 {[%clk 0:01:42.1]} 26. c5 {[%clk 0:00:53.3]}
26... f4 {[%clk 0:01:38.2]} 27. gxf4 {[%clk 0:00:47.3]} 27... exf4 {[%clk
0:01:39.1]} 28. Rxe8+ {[%clk 0:00:47.3]} 28... Rxe8 {[%clk 0:01:39.9]} 29. Qd3
{[%clk 0:00:44.9]} 29... Ng5 {[%clk 0:01:39]} 30. h4 {[%clk 0:00:42.9]} 30... f3
{[%clk 0:01:33.5]} 31. hxg5 {[%clk 0:00:41.7]} 31... fxg2 {[%clk 0:01:34.1]} 32.
gxh6 {[%clk 0:00:39.3]} 32... Qh5 {[%clk 0:01:31.4]} 33. Qg3+ {[%clk 0:00:37.5]}
33... Kh7 {[%clk 0:01:30.7]} 34. Qg7# {[%clk 0:00:37.8]} 1-0

[Event "*** SCC Grand Prix: Titled Tuesday Blitz"]
[Site "Chess.com"]
[Date "2020.06.09"]
[Round "1"]
[White "GoltsevDmitry2000"]
[Black "MacDaddyMac"]
[Result "1-0"]
[WhiteElo "2621"]
[BlackElo "2300"]
[TimeControl "180+1"]
[EndTime "9:05:23 PDT"]
[Termination "GoltsevDmitry2000 won by resignation"]

1. e4 {[%clk 0:02:59.3]} 1... e6 {[%clk 0:02:57.5]} 2. Nf3 {[%clk 0:02:59.1]}
2... d5 {[%clk 0:02:58.2]} 3. exd5 {[%clk 0:02:55.8]} 3... exd5 {[%clk
0:02:59.1]} 4. d4 {[%clk 0:02:56.1]} 4... Bg4 {[%clk 0:02:59.2]} 5. Bd3 {[%clk
0:02:56.1]} 5... Nf6 {[%clk 0:02:58.2]} 6. O-O {[%clk 0:02:55.9]} 6... Be7
{[%clk 0:02:58.6]} 7. h3 {[%clk 0:02:56.1]} 7... Bh5 {[%clk 0:02:58.1]} 8. Re1
{[%clk 0:02:56.7]} 8... O-O {[%clk 0:02:57.8]} 9. Nc3 {[%clk 0:02:56.9]} 9... c6
{[%clk 0:02:57.9]} 10. Bg5 {[%clk 0:02:56.9]} 10... Nbd7 {[%clk 0:02:56.6]} 11.
g4 {[%clk 0:02:53.9]} 11... Bg6 {[%clk 0:02:56.4]} 12. Ne5 {[%clk 0:02:53.6]}
12... Nxe5 {[%clk 0:02:51.5]} 13. dxe5 {[%clk 0:02:54.5]} 13... Nd7 {[%clk
0:02:51.2]} 14. Bxe7 {[%clk 0:02:51.4]} 14... Qxe7 {[%clk 0:02:52.1]} 15. f4
{[%clk 0:02:51.8]} 15... Qh4 {[%clk 0:02:50.3]} 16. Qf3 {[%clk 0:02:50.7]} 16...
Bxd3 {[%clk 0:02:50.4]} 17. cxd3 {[%clk 0:02:50.6]} 17... f5 {[%clk 0:02:49.9]}
18. g5 {[%clk 0:02:43.9]} 18... Nc5 {[%clk 0:02:45.2]} 19. Kg2 {[%clk
0:02:39.9]} 19... Ne6 {[%clk 0:02:43.9]} 20. Ne2 {[%clk 0:02:39.9]} 20... h6
{[%clk 0:02:38.3]} 21. gxh6 {[%clk 0:02:39.9]} 21... gxh6 {[%clk 0:02:38.6]} 22.
Qg3+ {[%clk 0:02:30.1]} 22... Qxg3+ {[%clk 0:02:38.6]} 23. Kxg3 {[%clk 0:02:31]}
23... Kh7 {[%clk 0:02:38.9]} 24. Kf3 {[%clk 0:02:31.4]} 24... Rg8 {[%clk
0:02:39.1]} 25. Rg1 {[%clk 0:02:30.8]} 25... Rxg1 {[%clk 0:02:36.6]} 26. Rxg1
{[%clk 0:02:31.7]} 26... Rc8 {[%clk 0:02:29.6]} 27. Ke3 {[%clk 0:02:13.1]} 27...
Rc7 {[%clk 0:02:17.3]} 28. Nd4 {[%clk 0:02:05.8]} 28... Nxd4 {[%clk 0:02:11.4]}
29. Kxd4 {[%clk 0:02:06.7]} 29... Rg7 {[%clk 0:02:01.7]} 30. Rxg7+ {[%clk
0:02:02]} 30... Kxg7 {[%clk 0:02:01.9]} 31. Kc5 {[%clk 0:02:01.8]} 31... Kf7
{[%clk 0:01:51.7]} 32. Kd6 {[%clk 0:01:59.1]} 32... Ke8 {[%clk 0:01:51.9]} 33.
Kc7 {[%clk 0:01:52.9]} 33... c5 {[%clk 0:01:50.6]} 34. Kxb7 {[%clk 0:01:39]}
34... c4 {[%clk 0:01:28.9]} 35. d4 {[%clk 0:01:12.9]} 35... a5 {[%clk
0:01:24.7]} 36. Kc6 {[%clk 0:01:10.5]} 36... a4 {[%clk 0:01:23.5]} 37. a3 {[%clk
0:01:10.3]} 1-0

[Event "*** SCC Grand Prix: Titled Tuesday Blitz"]
[Site "Chess.com"]
[Date "2020.06.09"]
[Round "1"]
[White "Mikasinski"]
[Black "StephenDedalus83"]
[Result "1-0"]
[WhiteElo "2420"]
[BlackElo "2738"]
[TimeControl "180+1"]
[EndTime "9:05:26 PDT"]
[Termination "Mikasinski won by resignation"]

1. e4 {[%clk 0:03:00]} 1... c5 {[%clk 0:02:56.2]} 2. Nf3 {[%clk 0:02:58.1]} 2...
Nc6 {[%clk 0:02:56.1]} 3. d4 {[%clk 0:02:58.2]} 3... cxd4 {[%clk 0:02:56.3]} 4.
Nxd4 {[%clk 0:02:58.9]} 4... Qc7 {[%clk 0:02:56.9]} 5. Nc3 {[%clk 0:02:57.5]}
5... e6 {[%clk 0:02:56.9]} 6. Be2 {[%clk 0:02:56.7]} 6... a6 {[%clk 0:02:56.8]}
7. O-O {[%clk 0:02:56.2]} 7... Nf6 {[%clk 0:02:56.7]} 8. Be3 {[%clk 0:02:52.5]}
8... Be7 {[%clk 0:02:56.1]} 9. f4 {[%clk 0:02:51.8]} 9... d6 {[%clk 0:02:56.1]}
10. Kh1 {[%clk 0:02:51.4]} 10... O-O {[%clk 0:02:55.9]} 11. Qe1 {[%clk
0:02:50.8]} 11... Na5 {[%clk 0:02:55.5]} 12. Qg3 {[%clk 0:02:22.5]} 12... Nc4
{[%clk 0:02:54.4]} 13. Bc1 {[%clk 0:02:13.3]} 13... b5 {[%clk 0:02:52.8]} 14. b3
{[%clk 0:02:09.6]} 14... Nb6 {[%clk 0:02:51.6]} 15. e5 {[%clk 0:01:59.9]} 15...
dxe5 {[%clk 0:02:37.7]} 16. fxe5 {[%clk 0:01:59.7]} 16... Nfd7 {[%clk
0:02:37.6]} 17. Bf3 {[%clk 0:01:47.7]} 17... Qxc3 {[%clk 0:02:36.5]} 18. Bh6
{[%clk 0:01:42.1]} 18... g6 {[%clk 0:02:34.8]} 19. Bxf8 {[%clk 0:01:41.6]} 19...
Bxf8 {[%clk 0:02:24.4]} 20. Bxa8 {[%clk 0:01:41.2]} 20... Qxg3 {[%clk
0:02:23.4]} 21. hxg3 {[%clk 0:01:41]} 21... Nxa8 {[%clk 0:02:23.7]} 22. Nf3
{[%clk 0:01:34.2]} 22... Bb7 {[%clk 0:02:20.6]} 23. Rad1 {[%clk 0:01:33.1]}
23... Nab6 {[%clk 0:02:16.4]} 24. Ng5 {[%clk 0:01:29.7]} 24... Nxe5 {[%clk
0:02:14.7]} 25. Rd8 {[%clk 0:01:27.7]} 25... Nbd7 {[%clk 0:02:04]} 26. Nxf7
{[%clk 0:01:22.8]} 26... Nxf7 {[%clk 0:01:38.9]} 27. Rxf7 {[%clk 0:01:08.5]}
27... Kxf7 {[%clk 0:01:26.9]} 28. Rxd7+ {[%clk 0:01:08.4]} 28... Kf6 {[%clk
0:01:26.7]} 29. Rxb7 {[%clk 0:01:08.3]} 29... Bd6 {[%clk 0:01:25.9]} 30. Rxh7
{[%clk 0:01:06.8]} 30... Bxg3 {[%clk 0:01:24.9]} 31. Ra7 {[%clk 0:01:06.4]}
31... Be1 {[%clk 0:01:24.5]} 32. Rxa6 {[%clk 0:01:06]} 32... Ke5 {[%clk
0:01:25]} 33. a4 {[%clk 0:01:04.1]} 33... bxa4 {[%clk 0:01:24.2]} 34. Rxa4
{[%clk 0:01:03.9]} 34... Kd5 {[%clk 0:01:23]} 35. Kg1 {[%clk 0:01:03.6]} 35...
e5 {[%clk 0:01:22.9]} 36. Rg4 {[%clk 0:01:02.7]} 36... e4 {[%clk 0:01:21.6]} 37.
Rxg6 {[%clk 0:01:01.4]} 37... Kd4 {[%clk 0:01:22.1]} 38. Kf1 {[%clk 0:01:00]}
38... Bc3 {[%clk 0:01:21.1]} 39. Ke2 {[%clk 0:00:59.6]} 1-0